[Event "Titled Tuesday Blitz March 07 Early 2023"]
[White "Petukhov, Dmitry"]
[Black "Yilmaz, Mustafa"]
[WhiteFideId "4142748"]
[BlackFideId "6302718"]
[WhiteElo "2311"]
[BlackElo "2523"]
[Result "1-0"]
[Round "06"]
[TimeControl "180+2"]
[Date "2023.03.07"]
[WhiteClock "0:00:49"]
[BlackClock "0:00:28"]

1. e4 {[%clk 0:03:00]}  c5 {[%clk 0:02:58]} 2. c3 {[%clk 0:03:00]}  Nf6 {[%clk 0:02:58]} 3. e5 {[%clk 0:03:00]}  Nd5 {[%clk 0:02:58]} 4. d4 {[%clk 0:03:01]}  cxd4 {[%clk 0:02:59]} 5. Nf3 {[%clk 0:02:58]}  e6 {[%clk 0:02:59]} 6. cxd4 {[%clk 0:02:57]}  b6 {[%clk 0:03:00]} 7. Nc3 {[%clk 0:02:56]}  Nxc3 {[%clk 0:02:59]} 8. bxc3 {[%clk 0:02:57]}  Qc7 {[%clk 0:03:00]} 9. Bd2 {[%clk 0:02:57]}  Bb7 {[%clk 0:03:01]} 10. Bd3 {[%clk 0:02:57]}  d6 {[%clk 0:03:01]} 11. O-O {[%clk 0:02:57]}  Nd7 {[%clk 0:03:01]} 12. Ng5 {[%clk 0:02:57]}  dxe5 {[%clk 0:02:48]} 13. Qh5 {[%clk 0:02:56]}  Nf6 {[%clk 0:02:40]} 14. Bb5+ {[%clk 0:02:43]}  Kd8 {[%clk 0:02:22]} 15. Qxf7 {[%clk 0:02:37]}  Qe7 {[%clk 0:02:01]} 16. dxe5 {[%clk 0:02:27]}  Ne4 {[%clk 0:01:53]} 17. Rad1 {[%clk 0:02:20]}  Kc8 {[%clk 0:01:19]} 18. Qxe6+ {[%clk 0:02:19]}  Qxe6 {[%clk 0:01:16]} 19. Nxe6 {[%clk 0:02:20]}  Ba3 {[%clk 0:01:11]} 20. Be3 {[%clk 0:02:09]}  Kb8 {[%clk 0:01:05]} 21. Nd4 {[%clk 0:01:56]}  Nxc3 {[%clk 0:01:02]} 22. Rd3 {[%clk 0:01:52]}  Bb2 {[%clk 0:00:54]} 23. e6 {[%clk 0:01:42]}  a6 {[%clk 0:00:51]} 24. Bd7 {[%clk 0:01:36]}  Ne4 {[%clk 0:00:44]} 25. Rb1 {[%clk 0:01:19]}  Nc5 {[%clk 0:00:40]} 26. Rdd1 {[%clk 0:01:18]}  Bxd4 {[%clk 0:00:32]} 27. Bxd4 {[%clk 0:01:11]}  Ka7 {[%clk 0:00:32]} 28. Bxc5 {[%clk 0:01:08]}  bxc5 {[%clk 0:00:33]} 29. e7 {[%clk 0:01:00]}  Be4 {[%clk 0:00:33]} 30. Rb2 {[%clk 0:00:53]}  Bg6 {[%clk 0:00:30]} 31. Bc6 {[%clk 0:00:49]}  Rab8 {[%clk 0:00:28]} 32. Rd7+ {[%clk 0:00:49]} 1-0


[Site "https://www.chess.com"]

[Event "Titled Tuesday Blitz March 07 Early 2023"]
[White "Ozen, Bahadir"]
[Black "Djokovic, Nebojsa"]
[WhiteFideId "6337058"]
[BlackFideId "938300"]
[WhiteElo "2503"]
[BlackElo "2587"]
[Result "1-0"]
[Round "06"]
[TimeControl "180+2"]
[Date "2023.03.07"]
[WhiteClock "0:00:02"]
[BlackClock "0:00:01"]

1. g3 {[%clk 0:03:00]}  d5 {[%clk 0:02:58]} 2. Nf3 {[%clk 0:03:00]}  Nf6 {[%clk 0:02:59]} 3. Bg2 {[%clk 0:03:01]}  e6 {[%clk 0:02:59]} 4. O-O {[%clk 0:03:01]}  Be7 {[%clk 0:02:59]} 5. c4 {[%clk 0:03:01]}  O-O {[%clk 0:03:00]} 6. d4 {[%clk 0:03:01]}  c6 {[%clk 0:02:59]} 7. Nbd2 {[%clk 0:02:55]}  b6 {[%clk 0:03:00]} 8. b3 {[%clk 0:02:54]}  Bb7 {[%clk 0:02:59]} 9. Bb2 {[%clk 0:02:53]}  Na6 {[%clk 0:02:59]} 10. Rc1 {[%clk 0:02:44]}  Rc8 {[%clk 0:02:55]} 11. Ne5 {[%clk 0:02:28]}  c5 {[%clk 0:02:54]} 12. dxc5 {[%clk 0:02:10]}  Bxc5 {[%clk 0:02:21]} 13. a3 {[%clk 0:02:05]}  Qe7 {[%clk 0:02:15]} 14. b4 {[%clk 0:02:05]}  Bd6 {[%clk 0:02:14]} 15. Qa4 {[%clk 0:01:56]}  dxc4 {[%clk 0:01:53]} 16. Bxb7 {[%clk 0:01:49]}  Qxb7 {[%clk 0:01:49]} 17. Nexc4 {[%clk 0:01:43]}  Be7 {[%clk 0:01:33]} 18. Qb3 {[%clk 0:01:40]}  Rfd8 {[%clk 0:01:17]} 19. Rfd1 {[%clk 0:01:35]}  Nc7 {[%clk 0:01:15]} 20. Ne5 {[%clk 0:01:30]}  Nb5 {[%clk 0:01:03]} 21. Ndf3 {[%clk 0:01:24]}  Rxc1 {[%clk 0:00:51]} 22. Rxc1 {[%clk 0:01:22]}  Rc8 {[%clk 0:00:48]} 23. Rd1 {[%clk 0:00:58]}  Rd8 {[%clk 0:00:37]} 24. Rxd8+ {[%clk 0:00:56]}  Bxd8 {[%clk 0:00:37]} 25. Ng5 {[%clk 0:00:50]}  Nd6 {[%clk 0:00:33]} 26. Qd3 {[%clk 0:00:40]}  Qd5 {[%clk 0:00:26]} 27. Qc2 {[%clk 0:00:28]}  h6 {[%clk 0:00:18]} 28. Ngf3 {[%clk 0:00:18]}  Nde4 {[%clk 0:00:15]} 29. Nc6 {[%clk 0:00:18]}  Kf8 {[%clk 0:00:06]} 30. Nxd8 {[%clk 0:00:08]}  Qxd8 {[%clk 0:00:05]} 31. Ne5 {[%clk 0:00:09]}  Kg8 {[%clk 0:00:03]} 32. f3 {[%clk 0:00:09]}  Nd6 {[%clk 0:00:02]} 33. e4 {[%clk 0:00:08]}  Nde8 {[%clk 0:00:02]} 34. Kf2 {[%clk 0:00:06]}  Qd6 {[%clk 0:00:01]} 35. Ke2 {[%clk 0:00:05]}  Nc7 {[%clk 0:00:02]} 36. Qc6 {[%clk 0:00:03]}  Qe7 {[%clk 0:00:01]} 37. Qb7 {[%clk 0:00:02]}  Nfe8 {[%clk 0:00:01]} 38. Qxa7 {[%clk 0:00:01]}  Qd6 {[%clk 0:00:02]} 39. Qb7 {[%clk 0:00:01]}  f6 {[%clk 0:00:02]} 40. Nd3 {[%clk 0:00:01]}  e5 {[%clk 0:00:02]} 41. Qc8 {[%clk 0:00:01]}  Kh7 {[%clk 0:00:02]} 42. Qh3 {[%clk 0:00:01]}  Qe7 {[%clk 0:00:02]} 43. Qf1 {[%clk 0:00:02]}  Ne6 {[%clk 0:00:02]} 44. Qc1 {[%clk 0:00:02]}  Nd6 {[%clk 0:00:02]} 45. Qc2 {[%clk 0:00:02]}  b5 {[%clk 0:00:03]} 46. Qd2 {[%clk 0:00:03]}  Nc4 {[%clk 0:00:03]} 47. Qc1 {[%clk 0:00:03]}  Qa7 {[%clk 0:00:04]} 48. Bc3 {[%clk 0:00:03]}  Nd4+ {[%clk 0:00:04]} 49. Bxd4 {[%clk 0:00:03]}  Qxd4 {[%clk 0:00:05]} 50. h3 {[%clk 0:00:03]}  g6 {[%clk 0:00:05]} 51. h4 {[%clk 0:00:03]}  f5 {[%clk 0:00:05]} 52. Nf2 {[%clk 0:00:04]}  f4 {[%clk 0:00:03]} 53. gxf4 {[%clk 0:00:04]}  exf4 {[%clk 0:00:04]} 54. Qxf4 {[%clk 0:00:05]}  Qb2+ {[%clk 0:00:04]} 55. Kf1 {[%clk 0:00:05]}  h5 {[%clk 0:00:05]} 56. Qc7+ {[%clk 0:00:03]}  Kh6 {[%clk 0:00:05]} 57. Qf4+ {[%clk 0:00:03]}  Kh7 {[%clk 0:00:05]} 58. Nh3 {[%clk 0:00:02]}  Nd2+ {[%clk 0:00:01]} 59. Ke2 {[%clk 0:00:02]}  Nc4+ {[%clk 0:00:01]} 60. Kf1 {[%clk 0:00:02]} 1-0


[Site "https://www.chess.com"]

[Event "Titled Tuesday Blitz March 07 Early 2023"]
[White "Sekar, B"]
[Black "Hayrapetyan, Hovik"]
[WhiteFideId "5043743"]
[BlackFideId "13302639"]
[WhiteElo "2258"]
[BlackElo "2348"]
[Result "0-1"]
[Round "06"]
[TimeControl "180+2"]
[Date "2023.03.07"]
[WhiteClock "0:00:03"]
[BlackClock "0:00:16"]

1. e4 {[%clk 0:03:00]}  c5 {[%clk 0:02:59]} 2. Nf3 {[%clk 0:03:01]}  d6 {[%clk 0:03:00]} 3. d4 {[%clk 0:03:01]}  cxd4 {[%clk 0:03:01]} 4. Nxd4 {[%clk 0:03:02]}  Nf6 {[%clk 0:03:01]} 5. Nc3 {[%clk 0:03:03]}  a6 {[%clk 0:03:02]} 6. Be2 {[%clk 0:03:03]}  e5 {[%clk 0:03:02]} 7. Nb3 {[%clk 0:03:04]}  Be7 {[%clk 0:03:03]} 8. O-O {[%clk 0:03:03]}  O-O {[%clk 0:03:03]} 9. Re1 {[%clk 0:03:03]}  Be6 {[%clk 0:03:03]} 10. Bf3 {[%clk 0:03:03]}  Nbd7 {[%clk 0:03:00]} 11. a4 {[%clk 0:03:03]}  Rc8 {[%clk 0:02:55]} 12. Be3 {[%clk 0:02:59]}  Nb6 {[%clk 0:02:50]} 13. Na5 {[%clk 0:02:38]}  Qc7 {[%clk 0:02:46]} 14. h3 {[%clk 0:02:16]}  Rfd8 {[%clk 0:02:46]} 15. Qe2 {[%clk 0:01:45]}  Nc4 {[%clk 0:02:19]} 16. Nxc4 {[%clk 0:01:44]}  Bxc4 {[%clk 0:02:20]} 17. Qd2 {[%clk 0:01:42]}  Qc6 {[%clk 0:02:04]} 18. a5 {[%clk 0:01:38]}  d5 {[%clk 0:01:50]} 19. Bb6 {[%clk 0:01:29]}  dxe4 {[%clk 0:01:47]} 20. Bxd8 {[%clk 0:01:09]}  Rxd8 {[%clk 0:01:47]} 21. Nxe4 {[%clk 0:00:32]}  Rxd2 {[%clk 0:01:46]} 22. Nxd2 {[%clk 0:00:33]}  Bd5 {[%clk 0:01:33]} 23. Rxe5 {[%clk 0:00:31]}  Bxf3 {[%clk 0:01:24]} 24. Nxf3 {[%clk 0:00:32]}  Bd6 {[%clk 0:01:19]} 25. Re2 {[%clk 0:00:32]}  h6 {[%clk 0:01:16]} 26. c3 {[%clk 0:00:30]}  Nd5 {[%clk 0:01:04]} 27. Nd4 {[%clk 0:00:24]}  Qc7 {[%clk 0:01:04]} 28. g3 {[%clk 0:00:18]}  Bc5 {[%clk 0:01:00]} 29. Rd1 {[%clk 0:00:17]}  Bxd4 {[%clk 0:00:58]} 30. Rxd4 {[%clk 0:00:17]}  Nf6 {[%clk 0:00:56]} 31. Red2 {[%clk 0:00:14]}  Qxa5 {[%clk 0:00:56]} 32. Rd8+ {[%clk 0:00:12]}  Kh7 {[%clk 0:00:55]} 33. Rf8 {[%clk 0:00:13]}  Qc7 {[%clk 0:00:51]} 34. h4 {[%clk 0:00:10]}  Qe7 {[%clk 0:00:47]} 35. Rfd8 {[%clk 0:00:10]}  a5 {[%clk 0:00:46]} 36. R8d4 {[%clk 0:00:09]}  b5 {[%clk 0:00:45]} 37. Kf1 {[%clk 0:00:09]}  h5 {[%clk 0:00:44]} 38. Re2 {[%clk 0:00:10]}  Qb7 {[%clk 0:00:44]} 39. Kg1 {[%clk 0:00:10]}  Qc7 {[%clk 0:00:33]} 40. Red2 {[%clk 0:00:09]}  Qe5 {[%clk 0:00:32]} 41. Kf1 {[%clk 0:00:08]}  Qf5 {[%clk 0:00:28]} 42. Re2 {[%clk 0:00:07]}  Qh3+ {[%clk 0:00:24]} 43. Kg1 {[%clk 0:00:07]}  Ng4 {[%clk 0:00:25]} 44. Red2 {[%clk 0:00:01]}  Qh2+ {[%clk 0:00:19]} 45. Kf1 {[%clk 0:00:02]}  Qh1+ {[%clk 0:00:19]} 46. Ke2 {[%clk 0:00:02]}  Nh2 {[%clk 0:00:20]} 47. Kd3 {[%clk 0:00:01]}  Nf3 {[%clk 0:00:16]} 48. Kc2 {[%clk 0:00:01]}  Nxd4+ {[%clk 0:00:16]} 49. Rxd4 {[%clk 0:00:01]}  Qe1 {[%clk 0:00:16]} 50. Rf4 {[%clk 0:00:02]}  f6 {[%clk 0:00:16]} 51. Rf5 {[%clk 0:00:03]}  Qe4+ {[%clk 0:00:16]} 0-1


[Site "https://www.chess.com"]

[Event "Titled Tuesday Blitz March 07 Early 2023"]
[White "Boyer, Mahel"]
[Black "Krstulovic, Alex"]
[WhiteFideId "45102422"]
[BlackFideId "760056"]
[WhiteElo "2439"]
[BlackElo "2311"]
[Result "0-1"]
[Round "06"]
[TimeControl "180+2"]
[Date "2023.03.07"]
[WhiteClock "0:00:01"]
[BlackClock "0:02:08"]

1. e4 {[%clk 0:03:00]}  e5 {[%clk 0:02:54]} 2. Nf3 {[%clk 0:03:00]}  Nf6 {[%clk 0:02:55]} 3. Nxe5 {[%clk 0:03:00]}  Nxe4 {[%clk 0:02:55]} 4. Qe2 {[%clk 0:02:59]}  Qe7 {[%clk 0:02:56]} 5. Qxe4 {[%clk 0:02:59]}  d6 {[%clk 0:02:57]} 6. d4 {[%clk 0:02:56]}  dxe5 {[%clk 0:02:52]} 7. dxe5 {[%clk 0:02:57]}  Nc6 {[%clk 0:02:52]} 8. Bb5 {[%clk 0:02:37]}  Bd7 {[%clk 0:02:50]} 9. Nc3 {[%clk 0:02:37]}  O-O-O {[%clk 0:02:46]} 10. Bf4 {[%clk 0:02:37]}  g5 {[%clk 0:02:46]} 11. Bg3 {[%clk 0:02:33]}  a6 {[%clk 0:02:47]} 12. Ba4 {[%clk 0:02:16]}  Re8 {[%clk 0:02:45]} 13. O-O-O {[%clk 0:02:15]}  f5 {[%clk 0:02:41]} 14. Qc4 {[%clk 0:00:13]}  f4 {[%clk 0:02:40]} 15. Rhe1 {[%clk 0:00:07]}  Qb4 {[%clk 0:02:34]} 16. Qf7 {[%clk 0:00:06]}  Re7 {[%clk 0:02:25]} 17. Qf6 {[%clk 0:00:04]}  Bg7 {[%clk 0:02:19]} 18. Qxg5 {[%clk 0:00:03]}  fxg3 {[%clk 0:02:20]} 19. Nd5 {[%clk 0:00:03]}  Qxa4 {[%clk 0:02:11]} 20. Nxe7+ {[%clk 0:00:03]}  Nxe7 {[%clk 0:02:12]} 21. Qxe7 {[%clk 0:00:03]}  Bh6+ {[%clk 0:02:10]} 22. Kb1 {[%clk 0:00:03]}  gxf2 {[%clk 0:02:11]} 23. Rf1 {[%clk 0:00:03]}  Re8 {[%clk 0:02:11]} 24. Qf7 {[%clk 0:00:03]}  Be3 {[%clk 0:02:10]} 25. e6 {[%clk 0:00:02]}  Bxe6 {[%clk 0:02:08]} 26. Qf3 {[%clk 0:00:01]}  Qxa2# {[%clk 0:02:08]} 0-1


[Site "https://www.chess.com"]

[Event "Titled Tuesday Blitz March 07 Early 2023"]
[White "Garv Gaur"]
[Black "Lorparizangeneh, Shahin"]
[WhiteFideId "45030839"]
[BlackFideId "12521604"]
[WhiteElo "2068"]
[BlackElo "2526"]
[Result "0-1"]
[Round "06"]
[TimeControl "180+2"]
[Date "2023.03.07"]
[WhiteClock "0:00:04"]
[BlackClock "0:00:10"]

1. Nf3 {[%clk 0:03:00]}  d5 {[%clk 0:02:59]} 2. g3 {[%clk 0:02:59]}  Nc6 {[%clk 0:02:59]} 3. Bg2 {[%clk 0:02:59]}  e5 {[%clk 0:03:00]} 4. d3 {[%clk 0:02:58]}  Nf6 {[%clk 0:02:58]} 5. O-O {[%clk 0:02:57]}  Be7 {[%clk 0:02:59]} 6. Nbd2 {[%clk 0:02:57]}  O-O {[%clk 0:02:58]} 7. e4 {[%clk 0:02:56]}  dxe4 {[%clk 0:02:49]} 8. Nxe4 {[%clk 0:02:55]}  Nd5 {[%clk 0:02:48]} 9. Nc3 {[%clk 0:02:51]}  Nxc3 {[%clk 0:02:44]} 10. bxc3 {[%clk 0:02:52]}  Bg4 {[%clk 0:02:45]} 11. h3 {[%clk 0:02:52]}  Bh5 {[%clk 0:02:45]} 12. g4 {[%clk 0:02:30]}  Bg6 {[%clk 0:02:45]} 13. Re1 {[%clk 0:02:31]}  e4 {[%clk 0:02:34]} 14. dxe4 {[%clk 0:02:10]}  Qxd1 {[%clk 0:02:35]} 15. Rxd1 {[%clk 0:02:11]}  Bxe4 {[%clk 0:02:34]} 16. Nd4 {[%clk 0:02:12]}  Bxg2 {[%clk 0:02:31]} 17. Kxg2 {[%clk 0:02:13]}  Na5 {[%clk 0:02:26]} 18. Bf4 {[%clk 0:02:10]}  Rac8 {[%clk 0:02:11]} 19. Nf5 {[%clk 0:02:07]}  Bc5 {[%clk 0:01:45]} 20. Rd7 {[%clk 0:02:02]}  g6 {[%clk 0:01:36]} 21. Nh6+ {[%clk 0:01:29]}  Kg7 {[%clk 0:01:33]} 22. g5 {[%clk 0:01:29]}  Bd6 {[%clk 0:01:20]} 23. Be3 {[%clk 0:01:26]}  Nc6 {[%clk 0:01:16]} 24. Rb1 {[%clk 0:01:20]}  b6 {[%clk 0:01:17]} 25. Bd4+ {[%clk 0:01:18]}  Nxd4 {[%clk 0:01:16]} 26. cxd4 {[%clk 0:01:18]}  Rcd8 {[%clk 0:01:14]} 27. Rxd8 {[%clk 0:01:18]}  Rxd8 {[%clk 0:01:15]} 28. Ng4 {[%clk 0:01:18]}  Bf4 {[%clk 0:01:14]} 29. c3 {[%clk 0:01:18]}  Bxg5 {[%clk 0:01:14]} 30. Re1 {[%clk 0:01:19]}  h5 {[%clk 0:01:07]} 31. Ne5 {[%clk 0:01:18]}  Re8 {[%clk 0:01:04]} 32. Rb1 {[%clk 0:01:16]}  Bf6 {[%clk 0:01:00]} 33. f4 {[%clk 0:01:09]}  Bxe5 {[%clk 0:00:56]} 34. fxe5 {[%clk 0:01:10]}  f6 {[%clk 0:00:57]} 35. exf6+ {[%clk 0:01:10]}  Kxf6 {[%clk 0:00:58]} 36. Kf3 {[%clk 0:01:10]}  g5 {[%clk 0:00:55]} 37. a4 {[%clk 0:01:05]}  a6 {[%clk 0:00:48]} 38. c4 {[%clk 0:01:00]}  Kf5 {[%clk 0:00:47]} 39. a5 {[%clk 0:00:58]}  g4+ {[%clk 0:00:46]} 40. hxg4+ {[%clk 0:00:56]}  hxg4+ {[%clk 0:00:47]} 41. Kf2 {[%clk 0:00:56]}  bxa5 {[%clk 0:00:44]} 42. Ra1 {[%clk 0:00:56]}  Kf4 {[%clk 0:00:43]} 43. Rxa5 {[%clk 0:00:55]}  g3+ {[%clk 0:00:43]} 44. Kf1 {[%clk 0:00:52]}  Re4 {[%clk 0:00:35]} 45. Rxa6 {[%clk 0:00:48]}  Rxd4 {[%clk 0:00:34]} 46. Rf6+ {[%clk 0:00:47]}  Kg4 {[%clk 0:00:28]} 47. Rg6+ {[%clk 0:00:46]}  Kf3 {[%clk 0:00:27]} 48. Rf6+ {[%clk 0:00:46]}  Rf4 {[%clk 0:00:28]} 49. Rc6 {[%clk 0:00:40]}  Rf7 {[%clk 0:00:21]} 50. Rc5 {[%clk 0:00:35]}  Kg4+ {[%clk 0:00:19]} 51. Kg2 {[%clk 0:00:35]}  Kf4 {[%clk 0:00:14]} 52. Rc6 {[%clk 0:00:34]}  Rg7 {[%clk 0:00:13]} 53. Rf6+ {[%clk 0:00:26]}  Ke5 {[%clk 0:00:12]} 54. Rh6 {[%clk 0:00:23]}  c5 {[%clk 0:00:11]} 55. Rh4 {[%clk 0:00:21]}  Rg6 {[%clk 0:00:08]} 56. Rh5+ {[%clk 0:00:13]}  Kd4 {[%clk 0:00:08]} 57. Rh4+ {[%clk 0:00:13]}  Kd3 {[%clk 0:00:08]} 58. Rf4 {[%clk 0:00:14]}  Rg5 {[%clk 0:00:09]} 59. Rh4 {[%clk 0:00:14]}  Ke3 {[%clk 0:00:09]} 60. Rh6 {[%clk 0:00:08]}  Rg4 {[%clk 0:00:09]} 61. Rh5 {[%clk 0:00:05]}  Kd4 {[%clk 0:00:09]} 62. Rd5+ {[%clk 0:00:03]}  Kxc4 {[%clk 0:00:09]} 63. Rd1 {[%clk 0:00:03]}  Kb3 {[%clk 0:00:09]} 64. Rc1 {[%clk 0:00:04]}  c4 {[%clk 0:00:10]} 0-1


[Site "https://www.chess.com"]

[Event "Titled Tuesday Blitz March 07 Early 2023"]
[White "Garakov, Mikhael"]
[Black "Pulpan, Jakub"]
[WhiteFideId "4169034"]
[BlackFideId "302759"]
[WhiteElo "2347"]
[BlackElo "2484"]
[Result "1-0"]
[Round "06"]
[TimeControl "180+2"]
[Date "2023.03.07"]
[WhiteClock "0:00:06"]
[BlackClock "0:00:31"]

1. e4 {[%clk 0:02:58]}  a6 {[%clk 0:02:39]} 2. d4 {[%clk 0:02:57]}  d6 {[%clk 0:02:35]} 3. f4 {[%clk 0:02:53]}  g6 {[%clk 0:02:29]} 4. Nf3 {[%clk 0:02:52]}  Bg7 {[%clk 0:02:29]} 5. Bd3 {[%clk 0:02:50]}  Bg4 {[%clk 0:02:28]} 6. Be3 {[%clk 0:02:47]}  c5 {[%clk 0:02:28]} 7. c3 {[%clk 0:02:02]}  Qb6 {[%clk 0:02:21]} 8. Nbd2 {[%clk 0:01:33]}  Qxb2 {[%clk 0:02:15]} 9. e5 {[%clk 0:00:54]}  Qxc3 {[%clk 0:02:10]} 10. Ke2 {[%clk 0:00:30]}  Nc6 {[%clk 0:01:58]} 11. Rc1 {[%clk 0:00:28]}  Nxd4+ {[%clk 0:01:56]} 12. Bxd4 {[%clk 0:00:26]}  Qxd4 {[%clk 0:01:56]} 13. h3 {[%clk 0:00:18]}  Bxf3+ {[%clk 0:01:56]} 14. Nxf3 {[%clk 0:00:19]}  Qxf4 {[%clk 0:01:54]} 15. Rc4 {[%clk 0:00:18]}  dxe5 {[%clk 0:01:35]} 16. Rxf4 {[%clk 0:00:17]}  exf4 {[%clk 0:01:36]} 17. Qa4+ {[%clk 0:00:18]}  Kf8 {[%clk 0:01:37]} 18. Be4 {[%clk 0:00:16]}  Nf6 {[%clk 0:01:36]} 19. Bxb7 {[%clk 0:00:16]}  Rb8 {[%clk 0:01:37]} 20. Qxa6 {[%clk 0:00:15]}  Nh5 {[%clk 0:01:36]} 21. Rd1 {[%clk 0:00:14]}  Bf6 {[%clk 0:01:35]} 22. Rd7 {[%clk 0:00:10]}  Kg7 {[%clk 0:01:35]} 23. Qc4 {[%clk 0:00:08]}  Ng3+ {[%clk 0:01:33]} 24. Kf2 {[%clk 0:00:08]}  Nf5 {[%clk 0:01:34]} 25. a4 {[%clk 0:00:07]}  Nd6 {[%clk 0:01:34]} 26. Qd5 {[%clk 0:00:07]}  c4 {[%clk 0:01:30]} 27. Ne5 {[%clk 0:00:07]}  Rhf8 {[%clk 0:01:28]} 28. Nxc4 {[%clk 0:00:06]}  Nf5 {[%clk 0:01:23]} 29. a5 {[%clk 0:00:06]}  Bh4+ {[%clk 0:01:23]} 30. Ke2 {[%clk 0:00:04]}  e6 {[%clk 0:01:18]} 31. Qc6 {[%clk 0:00:04]}  Bf6 {[%clk 0:01:09]} 32. Qb6 {[%clk 0:00:04]}  Bd8 {[%clk 0:01:03]} 33. Qb5 {[%clk 0:00:04]}  Bf6 {[%clk 0:01:03]} 34. Qb6 {[%clk 0:00:04]}  Bd8 {[%clk 0:01:03]} 35. Qa7 {[%clk 0:00:04]}  Bf6 {[%clk 0:00:52]} 36. a6 {[%clk 0:00:05]}  Kh6 {[%clk 0:00:47]} 37. Qb6 {[%clk 0:00:05]}  Rfc8 {[%clk 0:00:44]} 38. a7 {[%clk 0:00:04]}  Rxb7 {[%clk 0:00:44]} 39. Qxb7 {[%clk 0:00:04]}  Rxc4 {[%clk 0:00:44]} 40. Rxf7 {[%clk 0:00:05]}  Kg5 {[%clk 0:00:36]} 41. a8=Q {[%clk 0:00:05]}  Rc2+ {[%clk 0:00:36]} 42. Kd3 {[%clk 0:00:05]}  Rc3+ {[%clk 0:00:36]} 43. Kd2 {[%clk 0:00:05]}  Rg3 {[%clk 0:00:36]} 44. Rxf6 {[%clk 0:00:05]}  f3 {[%clk 0:00:36]} 45. Qf8 {[%clk 0:00:05]}  fxg2 {[%clk 0:00:33]} 46. Rxf5+ {[%clk 0:00:05]}  exf5 {[%clk 0:00:31]} 47. Qfe7+ {[%clk 0:00:06]}  Kf4 {[%clk 0:00:29]} 48. Qd6+ {[%clk 0:00:06]}  Kg5 {[%clk 0:00:29]} 49. Qxg3+ {[%clk 0:00:06]}  Kh5 {[%clk 0:00:30]} 50. Qbxg2 {[%clk 0:00:06]}  h6 {[%clk 0:00:30]} 51. Qxg6+ {[%clk 0:00:06]}  Kh4 {[%clk 0:00:31]} 52. Qxh6# {[%clk 0:00:06]} 1-0


[Site "https://www.chess.com"]

[Event "Titled Tuesday Blitz March 07 Early 2023"]
[White "Cherniaiev, Tykhon"]
[Black "Sztokbant, Bernardo Vainzoff"]
[WhiteFideId "14182360"]
[BlackFideId "2115956"]
[WhiteElo "2450"]
[BlackElo "2222"]
[Result "1/2-1/2"]
[Round "06"]
[TimeControl "180+2"]
[Date "2023.03.07"]
[WhiteClock "0:00:23"]
[BlackClock "0:01:09"]

1. Nf3 {[%clk 0:03:00]}  c5 {[%clk 0:03:00]} 2. c4 {[%clk 0:03:00]}  Nf6 {[%clk 0:02:59]} 3. Nc3 {[%clk 0:03:00]}  g6 {[%clk 0:02:59]} 4. g3 {[%clk 0:03:01]}  Bg7 {[%clk 0:02:59]} 5. Bg2 {[%clk 0:03:02]}  O-O {[%clk 0:03:00]} 6. O-O {[%clk 0:03:03]}  Nc6 {[%clk 0:03:00]} 7. d4 {[%clk 0:03:02]}  cxd4 {[%clk 0:03:01]} 8. Nxd4 {[%clk 0:03:03]}  d6 {[%clk 0:03:01]} 9. Nxc6 {[%clk 0:03:03]}  bxc6 {[%clk 0:03:02]} 10. Bxc6 {[%clk 0:03:04]}  Bh3 {[%clk 0:03:02]} 11. Bxa8 {[%clk 0:03:02]}  Qxa8 {[%clk 0:03:03]} 12. f3 {[%clk 0:03:03]}  Bxf1 {[%clk 0:03:01]} 13. Qxf1 {[%clk 0:03:04]}  Rc8 {[%clk 0:03:01]} 14. e4 {[%clk 0:02:32]}  Qc6 {[%clk 0:02:59]} 15. Be3 {[%clk 0:02:30]}  a6 {[%clk 0:02:57]} 16. b3 {[%clk 0:02:26]}  Ng4 {[%clk 0:02:40]} 17. fxg4 {[%clk 0:02:13]}  Bxc3 {[%clk 0:02:39]} 18. Rc1 {[%clk 0:02:12]}  Bb2 {[%clk 0:02:32]} 19. Rc2 {[%clk 0:01:53]}  Qxe4 {[%clk 0:02:32]} 20. Rxb2 {[%clk 0:01:45]}  Qxe3+ {[%clk 0:02:31]} 21. Qf2 {[%clk 0:01:45]}  Qc1+ {[%clk 0:02:30]} 22. Kg2 {[%clk 0:01:44]}  Rc5 {[%clk 0:02:16]} 23. Re2 {[%clk 0:01:40]}  e6 {[%clk 0:02:09]} 24. Qd4 {[%clk 0:01:28]}  Qg5 {[%clk 0:01:18]} 25. Qxd6 {[%clk 0:00:50]}  Qxg4 {[%clk 0:01:17]} 26. Qxc5 {[%clk 0:00:50]}  Qxe2+ {[%clk 0:01:17]} 27. Qf2 {[%clk 0:00:51]}  Qe4+ {[%clk 0:01:15]} 28. Qf3 {[%clk 0:00:36]}  Qc2+ {[%clk 0:01:15]} 29. Qf2 {[%clk 0:00:37]}  Qe4+ {[%clk 0:01:10]} 30. Qf3 {[%clk 0:00:33]}  Qc2+ {[%clk 0:01:10]} 31. Qf2 {[%clk 0:00:23]}  Qe4+ {[%clk 0:01:09]} 1/2-1/2


[Site "https://www.chess.com"]

[Event "Titled Tuesday Blitz March 07 Early 2023"]
[White "Kokoszczynski, Jan"]
[Black "Rozman, Levy"]
[WhiteFideId "1174460"]
[BlackFideId "2039877"]
[WhiteElo "2139"]
[BlackElo "2376"]
[Result "1-0"]
[Round "06"]
[TimeControl "180+2"]
[Date "2023.03.07"]
[WhiteClock "0:01:00"]
[BlackClock "0:01:01"]

1. d4 {[%clk 0:02:55]}  e6 {[%clk 0:02:50]} 2. c4 {[%clk 0:02:54]}  b6 {[%clk 0:02:49]} 3. Nf3 {[%clk 0:02:34]}  Bb7 {[%clk 0:02:49]} 4. e3 {[%clk 0:02:24]}  Bb4+ {[%clk 0:02:48]} 5. Nbd2 {[%clk 0:02:19]}  f5 {[%clk 0:02:47]} 6. Be2 {[%clk 0:02:19]}  Nf6 {[%clk 0:02:47]} 7. a3 {[%clk 0:02:19]}  Bxd2+ {[%clk 0:02:47]} 8. Qxd2 {[%clk 0:02:20]}  Ne4 {[%clk 0:02:46]} 9. Qc2 {[%clk 0:02:20]}  O-O {[%clk 0:02:46]} 10. O-O {[%clk 0:02:19]}  d6 {[%clk 0:02:41]} 11. b4 {[%clk 0:02:14]}  Nd7 {[%clk 0:02:41]} 12. Bb2 {[%clk 0:02:15]}  Rf6 {[%clk 0:02:33]} 13. d5 {[%clk 0:02:10]}  e5 {[%clk 0:02:30]} 14. Nd2 {[%clk 0:02:06]}  Rh6 {[%clk 0:02:24]} 15. g3 {[%clk 0:01:47]}  Nxd2 {[%clk 0:02:20]} 16. Qxd2 {[%clk 0:01:47]}  Nf6 {[%clk 0:02:16]} 17. f4 {[%clk 0:01:35]}  Ne4 {[%clk 0:02:05]} 18. Qc2 {[%clk 0:01:35]}  Qf6 {[%clk 0:01:47]} 19. Bf3 {[%clk 0:01:08]}  Qg6 {[%clk 0:01:22]} 20. Bxe4 {[%clk 0:01:07]}  fxe4 {[%clk 0:01:21]} 21. fxe5 {[%clk 0:01:07]}  dxe5 {[%clk 0:01:15]} 22. Bxe5 {[%clk 0:01:07]}  Re8 {[%clk 0:01:01]} 23. Bxc7 {[%clk 0:01:00]} 1-0


[Site "https://www.chess.com"]